[Event "*** Titled Tuesday Blitz"]
[Site "Chess.com"]
[Date "2020.05.05"]
[Round "4"]
[White "JulAnt"]
[Black "vanea_03"]
[Result "0-1"]
[WhiteElo "2436"]
[BlackElo "2637"]
[TimeControl "180+1"]
[EndTime "10:40:38 PDT"]
[Termination "vanea_03 won by resignation"]

1. e4 {[%clk 0:03:00.9]} 1... e5 {[%clk 0:02:58.8]} 2. Nf3 {[%clk 0:03:00.9]}
2... Nc6 {[%clk 0:02:59.3]} 3. Bb5 {[%clk 0:03:00.9]} 3... a6 {[%clk 0:02:59.6]}
4. Ba4 {[%clk 0:03:01.3]} 4... Nf6 {[%clk 0:02:59.8]} 5. O-O {[%clk 0:03:00]}
5... Bc5 {[%clk 0:03:00]} 6. c3 {[%clk 0:02:45.5]} 6... b5 {[%clk 0:02:58.7]} 7.
Bb3 {[%clk 0:02:45.4]} 7... d6 {[%clk 0:02:59]} 8. d4 {[%clk 0:02:44.1]} 8...
Bb6 {[%clk 0:02:59.6]} 9. a4 {[%clk 0:02:44.1]} 9... Rb8 {[%clk 0:02:59.9]} 10.
a5 {[%clk 0:02:43.6]} 10... Ba7 {[%clk 0:03:00.1]} 11. Re1 {[%clk 0:02:31.8]}
11... O-O {[%clk 0:02:56.3]} 12. h3 {[%clk 0:02:28.4]} 12... h6 {[%clk
0:02:44.3]} 13. Be3 {[%clk 0:02:05.5]} 13... Ra8 {[%clk 0:02:33.1]} 14. Nbd2
{[%clk 0:02:02.8]} 14... Bb7 {[%clk 0:02:32.4]} 15. d5 {[%clk 0:01:55]} 15...
Ne7 {[%clk 0:02:28.4]} 16. Nf1 {[%clk 0:01:54.8]} 16... c6 {[%clk 0:02:18.8]}
17. dxc6 {[%clk 0:01:50.8]} 17... Bxc6 {[%clk 0:02:18.4]} 18. Bxa7 {[%clk
0:01:49.6]} 18... Rxa7 {[%clk 0:02:19.3]} 19. Ng3 {[%clk 0:01:49.9]} 19... Rd7
{[%clk 0:02:11.2]} 20. Qc2 {[%clk 0:01:42.6]} 20... Bb7 {[%clk 0:02:01.8]} 21.
Nh2 {[%clk 0:01:29]} 21... d5 {[%clk 0:01:31.1]} 22. exd5 {[%clk 0:01:27.1]}
22... Nexd5 {[%clk 0:01:32]} 23. Rxe5 {[%clk 0:01:20.6]} 23... Nf4 {[%clk
0:01:32]} 24. Qf5 {[%clk 0:00:48.5]} 24... Nxg2 {[%clk 0:01:24.4]} 25. Ng4
{[%clk 0:00:47.7]} 25... Nh4 {[%clk 0:00:57.6]} 26. Nxf6+ {[%clk 0:00:44.2]}
26... Qxf6 {[%clk 0:00:54.2]} 27. Qxf6 {[%clk 0:00:43.8]} 27... gxf6 {[%clk
0:00:55.1]} 28. Re3 {[%clk 0:00:29.4]} 28... Nf3+ {[%clk 0:00:53.7]} 29. Rxf3
{[%clk 0:00:25.1]} 29... Bxf3 {[%clk 0:00:54.6]} 30. Re1 {[%clk 0:00:24.5]}
30... Rfd8 {[%clk 0:00:38.3]} 31. Nf5 {[%clk 0:00:23]} 31... Kh7 {[%clk
0:00:35]} 32. Kh2 {[%clk 0:00:19.6]} 32... Bd1 {[%clk 0:00:27.4]} 33. Bxd1
{[%clk 0:00:13.8]} 33... Rxd1 {[%clk 0:00:28.3]} 34. Re7 {[%clk 0:00:14.1]}
34... R8d7 {[%clk 0:00:24.3]} 35. Re8 {[%clk 0:00:14.2]} 35... R7d2 {[%clk
0:00:18.5]} 36. Kg3 {[%clk 0:00:13.6]} 36... Rg1+ {[%clk 0:00:18.4]} 37. Kf3
{[%clk 0:00:13.3]} 37... Rf1 {[%clk 0:00:18.6]} 38. Re7 {[%clk 0:00:11.3]} 38...
Rdxf2+ {[%clk 0:00:17.6]} 0-1

[Event "*** Titled Tuesday Blitz"]
[Site "Chess.com"]
[Date "2020.05.05"]
[Round "4"]
[White "Sjakkerntobi"]
[Black "bakki78"]
[Result "0-1"]
[WhiteElo "2249"]
[BlackElo "2729"]
[TimeControl "180+1"]
[EndTime "10:40:39 PDT"]
[Termination "bakki78 won on time"]

1. e4 {[%clk 0:03:00.9]} 1... c5 {[%clk 0:02:59.1]} 2. Nf3 {[%clk 0:03:01]} 2...
Nc6 {[%clk 0:02:59]} 3. d4 {[%clk 0:03:01.4]} 3... cxd4 {[%clk 0:02:58.9]} 4.
Nxd4 {[%clk 0:03:02.3]} 4... Nf6 {[%clk 0:02:59.2]} 5. Nc3 {[%clk 0:03:02.5]}
5... d6 {[%clk 0:02:59.6]} 6. Be2 {[%clk 0:02:59]} 6... e5 {[%clk 0:02:59.1]} 7.
Nb3 {[%clk 0:02:59.1]} 7... Be7 {[%clk 0:02:57.9]} 8. g4 {[%clk 0:02:58.9]} 8...
O-O {[%clk 0:02:51.4]} 9. g5 {[%clk 0:02:59]} 9... Nd7 {[%clk 0:02:46.6]} 10. h4
{[%clk 0:02:58.2]} 10... a5 {[%clk 0:02:46.4]} 11. a4 {[%clk 0:02:53.8]} 11...
Nb4 {[%clk 0:02:35.1]} 12. Be3 {[%clk 0:02:48.4]} 12... b6 {[%clk 0:02:32.9]}
13. Bc4 {[%clk 0:02:33.2]} 13... Qc7 {[%clk 0:02:05]} 14. Nd2 {[%clk 0:01:35.7]}
14... Ba6 {[%clk 0:02:01.6]} 15. Bb3 {[%clk 0:01:32.5]} 15... Nc5 {[%clk
0:02:00.3]} 16. Bxc5 {[%clk 0:01:27.9]} 16... dxc5 {[%clk 0:01:57.5]} 17. Nd5
{[%clk 0:01:23.8]} 17... Nxd5 {[%clk 0:01:46.1]} 18. Bxd5 {[%clk 0:01:24.7]}
18... Rad8 {[%clk 0:01:46.1]} 19. g6 {[%clk 0:01:20.5]} 19... Rxd5 {[%clk
0:01:32.6]} 20. gxh7+ {[%clk 0:01:16.2]} 20... Kh8 {[%clk 0:01:31.7]} 21. exd5
{[%clk 0:01:17.1]} 21... e4 {[%clk 0:01:30.9]} 22. Qg4 {[%clk 0:00:58.5]} 22...
f5 {[%clk 0:01:27.6]} 23. Qg6 {[%clk 0:00:56.7]} 23... Qe5 {[%clk 0:01:22.4]}
24. O-O-O {[%clk 0:00:48]} 24... Bf6 {[%clk 0:00:56.6]} 25. c3 {[%clk
0:00:47.3]} 25... b5 {[%clk 0:00:57.1]} 26. h5 {[%clk 0:00:27]} 26... b4 {[%clk
0:00:54.2]} 27. Nb1 {[%clk 0:00:24.9]} 27... Bd3 {[%clk 0:00:49.7]} 28. Rh3
{[%clk 0:00:23.1]} 28... bxc3 {[%clk 0:00:46.9]} 29. Nxc3 {[%clk 0:00:22.4]}
29... Qf4+ {[%clk 0:00:44.1]} 30. Re3 {[%clk 0:00:20.4]} 30... Qxf2 {[%clk
0:00:41.7]} 31. Ree1 {[%clk 0:00:17.7]} 31... Rb8 {[%clk 0:00:39.4]} 32. Rd2
{[%clk 0:00:07]} 32... Qxe1+ {[%clk 0:00:38.6]} 33. Nd1 {[%clk 0:00:07.9]} 33...
Qh4 {[%clk 0:00:32.1]} 34. d6 {[%clk 0:00:06]} 34... Qg5 {[%clk 0:00:25.6]} 35.
Qf7 {[%clk 0:00:05]} 35... Kxh7 {[%clk 0:00:22]} 36. h6 {[%clk 0:00:03.2]} 36...
Qxh6 {[%clk 0:00:21.2]} 37. d7 {[%clk 0:00:02.3]} 37... Rd8 {[%clk 0:00:20.8]}
0-1

[Event "*** Titled Tuesday Blitz"]
[Site "Chess.com"]
[Date "2020.05.05"]
[Round "4"]
[White "PlotnikovPavel"]
[Black "SahajGrover"]
[Result "0-1"]
[WhiteElo "2490"]
[BlackElo "2721"]
[TimeControl "180+1"]
[EndTime "10:40:39 PDT"]
[Termination "SahajGrover won by resignation"]

1. e4 {[%clk 0:01:46.8]} 1... c5 {[%clk 0:02:58.6]} 2. c3 {[%clk 0:01:46.5]}
2... Nf6 {[%clk 0:02:57.8]} 3. e5 {[%clk 0:01:46.2]} 3... Nd5 {[%clk 0:02:58.3]}
4. d4 {[%clk 0:01:46.3]} 4... cxd4 {[%clk 0:02:58.8]} 5. Qxd4 {[%clk 0:01:47]}
5... e6 {[%clk 0:02:57.5]} 6. Bd3 {[%clk 0:01:46.3]} 6... Nc6 {[%clk 0:02:56.1]}
7. Qe4 {[%clk 0:01:46.1]} 7... f5 {[%clk 0:02:35.2]} 8. Qe2 {[%clk 0:01:45.5]}
8... b5 {[%clk 0:02:34.4]} 9. Bxb5 {[%clk 0:01:43.6]} 9... Qb6 {[%clk 0:02:34]}
10. Bc4 {[%clk 0:01:41.8]} 10... Bc5 {[%clk 0:02:24.9]} 11. Nf3 {[%clk
0:01:37.1]} 11... O-O {[%clk 0:02:23.6]} 12. b4 {[%clk 0:01:30.3]} 12... Be7
{[%clk 0:02:17.9]} 13. a4 {[%clk 0:01:28.3]} 13... Kh8 {[%clk 0:02:06]} 14. b5
{[%clk 0:01:27.9]} 14... Na5 {[%clk 0:02:05.6]} 15. Bxd5 {[%clk 0:01:24.9]}
15... exd5 {[%clk 0:02:06.5]} 16. Be3 {[%clk 0:01:22.7]} 16... Qg6 {[%clk
0:01:59.7]} 17. O-O {[%clk 0:01:20.3]} 17... d6 {[%clk 0:01:57]} 18. Bd4 {[%clk
0:01:19.2]} 18... f4 {[%clk 0:01:50.2]} 19. exd6 {[%clk 0:01:13]} 19... Bh3
{[%clk 0:01:47.9]} 20. Ne1 {[%clk 0:01:01.5]} 20... Bxg2 {[%clk 0:01:28]} 21.
Bxg7+ {[%clk 0:00:43]} 21... Qxg7 {[%clk 0:00:41.6]} 22. Qxe7 {[%clk 0:00:42]}
22... Rf7 {[%clk 0:00:41.9]} 23. Qxf7 {[%clk 0:00:28.6]} 23... Qxf7 {[%clk
0:00:42.8]} 24. Kxg2 {[%clk 0:00:27.7]} 24... Rg8+ {[%clk 0:00:41.2]} 25. Kh1
{[%clk 0:00:26.2]} 25... Nc4 {[%clk 0:00:29.1]} 26. Na3 {[%clk 0:00:19]} 26...
Nd2 {[%clk 0:00:28]} 27. Ng2 {[%clk 0:00:16.9]} 27... Qg6 {[%clk 0:00:15]} 28.
Rg1 {[%clk 0:00:14.5]} 28... Nf3 {[%clk 0:00:14.5]} 29. Nxf4 {[%clk 0:00:14.3]}
29... Qxg1+ {[%clk 0:00:14.3]} 0-1

[Event "*** Titled Tuesday Blitz"]
[Site "Chess.com"]
[Date "2020.05.05"]
[Round "4"]
[White "Duhless"]
[Black "MihailNik"]
[Result "1-0"]
[WhiteElo "3085"]
[BlackElo "2722"]
[TimeControl "180+1"]
[EndTime "10:40:40 PDT"]
[Termination "Duhless won on time"]

1. d4 {[%clk 0:03:00.9]} 1... d5 {[%clk 0:03:00]} 2. c4 {[%clk 0:03:00.4]} 2...
c6 {[%clk 0:03:00.4]} 3. Nf3 {[%clk 0:03:00.3]} 3... Nf6 {[%clk 0:03:00.4]} 4.
Nc3 {[%clk 0:03:00.7]} 4... dxc4 {[%clk 0:03:00.3]} 5. a4 {[%clk 0:02:57.9]}
5... Bf5 {[%clk 0:03:00]} 6. Ne5 {[%clk 0:02:55.9]} 6... Na6 {[%clk 0:03:00.1]}
7. e4 {[%clk 0:02:48.7]} 7... Nxe4 {[%clk 0:02:46.3]} 8. Bxc4 {[%clk 0:02:48]}
8... e6 {[%clk 0:02:33.5]} 9. O-O {[%clk 0:02:40.7]} 9... Nc7 {[%clk 0:02:25.2]}
10. Qf3 {[%clk 0:02:39.6]} 10... Nd6 {[%clk 0:02:20.6]} 11. Bb3 {[%clk
0:02:26.8]} 11... Be7 {[%clk 0:02:17.8]} 12. Bf4 {[%clk 0:02:23.4]} 12... Nd5
{[%clk 0:02:15.5]} 13. Bg3 {[%clk 0:02:14.9]} 13... O-O {[%clk 0:02:14.4]} 14.
Rfe1 {[%clk 0:02:14.9]} 14... Re8 {[%clk 0:01:55.3]} 15. a5 {[%clk 0:02:10]}
15... Rc8 {[%clk 0:01:36.4]} 16. Nxd5 {[%clk 0:02:01.6]} 16... cxd5 {[%clk
0:01:34.6]} 17. Ba4 {[%clk 0:02:01.3]} 17... Rf8 {[%clk 0:01:31.6]} 18. Nd7
{[%clk 0:02:00.4]} 18... Re8 {[%clk 0:01:31.3]} 19. Nc5 {[%clk 0:01:47.8]} 19...
Rf8 {[%clk 0:01:30.9]} 20. Nd7 {[%clk 0:01:31.6]} 20... Re8 {[%clk 0:01:21.4]}
21. Ne5 {[%clk 0:01:29.1]} 21... Rf8 {[%clk 0:01:21.7]} 22. Qb3 {[%clk
0:01:23.9]} 22... Bc2 {[%clk 0:01:03.4]} 23. Qa2 {[%clk 0:01:23.6]} 23... Bxa4
{[%clk 0:01:03.2]} 24. Qxa4 {[%clk 0:01:24.5]} 24... Nf5 {[%clk 0:01:02.1]} 25.
Rac1 {[%clk 0:01:20.8]} 25... Bg5 {[%clk 0:00:55.1]} 26. f4 {[%clk 0:01:15.2]}
26... Be7 {[%clk 0:00:50.8]} 27. a6 {[%clk 0:01:11.1]} 27... bxa6 {[%clk
0:00:45.4]} 28. Bf2 {[%clk 0:01:05.2]} 28... Qd6 {[%clk 0:00:39.5]} 29. Rc6
{[%clk 0:01:01.5]} 29... Rxc6 {[%clk 0:00:38.4]} 30. Nxc6 {[%clk 0:01:00]} 30...
Bf6 {[%clk 0:00:36.2]} 31. g3 {[%clk 0:00:52.9]} 31... h5 {[%clk 0:00:35.3]} 32.
Qxa6 {[%clk 0:00:51.1]} 32... h4 {[%clk 0:00:27.3]} 33. Rc1 {[%clk 0:00:49.7]}
33... hxg3 {[%clk 0:00:25.7]} 34. hxg3 {[%clk 0:00:50.6]} 34... g5 {[%clk
0:00:25.8]} 35. fxg5 {[%clk 0:00:43.3]} 35... Bxg5 {[%clk 0:00:26.7]} 36. Rc3
{[%clk 0:00:43.6]} 36... Kh7 {[%clk 0:00:20]} 37. Qxa7 {[%clk 0:00:40]} 37...
Bh6 {[%clk 0:00:17.1]} 38. Kf1 {[%clk 0:00:34.7]} 38... Kg7 {[%clk 0:00:07.7]}
39. g4 {[%clk 0:00:33.1]} 39... Rc8 {[%clk 0:00:03.7]} 40. Ne5 {[%clk 0:00:30]}
1-0

[Event "*** Titled Tuesday Blitz"]
[Site "Chess.com"]
[Date "2020.05.05"]
[Round "4"]
[White "ajkom197"]
[Black "enriquetejedor"]
[Result "1-0"]
[WhiteElo "2314"]
[BlackElo "2467"]
[TimeControl "180+1"]
[EndTime "10:40:41 PDT"]
[Termination "ajkom197 won on time"]

1. c4 {[%clk 0:03:00.9]} 1... c6 {[%clk 0:02:30.4]} 2. e4 {[%clk 0:03:00]} 2...
d5 {[%clk 0:02:24.2]} 3. exd5 {[%clk 0:02:59.3]} 3... cxd5 {[%clk 0:02:25.1]} 4.
cxd5 {[%clk 0:02:59.4]} 4... Nf6 {[%clk 0:02:23.9]} 5. Nc3 {[%clk 0:02:59.2]}
5... Nxd5 {[%clk 0:02:22.7]} 6. Nf3 {[%clk 0:02:59]} 6... e6 {[%clk 0:02:20.7]}
7. d4 {[%clk 0:02:53.3]} 7... Be7 {[%clk 0:02:16.7]} 8. Bd3 {[%clk 0:02:52.5]}
8... O-O {[%clk 0:02:12.6]} 9. O-O {[%clk 0:02:52.2]} 9... Nc6 {[%clk 0:02:09]}
10. a3 {[%clk 0:02:49.4]} 10... b6 {[%clk 0:01:30.5]} 11. Nxd5 {[%clk
0:02:37.5]} 11... Qxd5 {[%clk 0:01:18]} 12. Qc2 {[%clk 0:02:37.1]} 12... Nxd4
{[%clk 0:01:18.5]} 13. Nxd4 {[%clk 0:02:33.3]} 13... Qxd4 {[%clk 0:01:19.4]} 14.
Bxh7+ {[%clk 0:02:32.4]} 14... Kh8 {[%clk 0:01:08.7]} 15. Be3 {[%clk 0:02:30.6]}
15... Qh4 {[%clk 0:01:06.8]} 16. Be4 {[%clk 0:02:29.7]} 16... Rb8 {[%clk
0:01:07.2]} 17. g3 {[%clk 0:02:23.1]} 17... Qf6 {[%clk 0:01:06.8]} 18. Rfd1
{[%clk 0:02:17.2]} 18... Bb7 {[%clk 0:00:55.4]} 19. Bxb7 {[%clk 0:02:14.4]}
19... Rxb7 {[%clk 0:00:56.3]} 20. Qe4 {[%clk 0:02:06.4]} 20... Rc7 {[%clk
0:00:33.8]} 21. Bd4 {[%clk 0:01:58.3]} 21... Qf5 {[%clk 0:00:32.5]} 22. Qxf5
{[%clk 0:01:58]} 22... exf5 {[%clk 0:00:33.4]} 23. Bc3 {[%clk 0:01:58.3]} 23...
f6 {[%clk 0:00:16.8]} 24. Rd5 {[%clk 0:01:57.4]} 24... g6 {[%clk 0:00:12.5]} 25.
Rad1 {[%clk 0:01:53.1]} 25... Rf7 {[%clk 0:00:11.2]} 26. Rd7 {[%clk 0:01:49.6]}
26... Bf8 {[%clk 0:00:02.7]} 27. Bxf6+ {[%clk 0:01:45.7]} 27... Kg8 {[%clk
0:00:03.1]} 28. Rxc7 {[%clk 0:01:28.9]} 28... Rxc7 {[%clk 0:00:02.1]} 29. Be5
{[%clk 0:01:29.3]} 29... Rc2 {[%clk 0:00:02.4]} 30. b4 {[%clk 0:01:12.5]} 30...
a5 {[%clk 0:00:01.9]} 31. Rd8 {[%clk 0:01:10.2]} 31... Kf7 {[%clk 0:00:01.2]}
32. Bd4 {[%clk 0:00:56.4]} 32... Ra2 {[%clk 0:00:01.3]} 33. Bxb6 {[%clk
0:00:52.7]} 33... axb4 {[%clk 0:00:01.8]} 34. axb4 {[%clk 0:00:50]} 34... Bxb4
{[%clk 0:00:02.7]} 35. Kg2 {[%clk 0:00:47.9]} 35... Be7 {[%clk 0:00:02.4]} 36.
Rd7 {[%clk 0:00:47.2]} 36... Ke6 {[%clk 0:00:02.8]} 37. Rd3 {[%clk 0:00:46.7]}
37... Ra6 {[%clk 0:00:02.8]} 38. Be3 {[%clk 0:00:45.8]} 38... Kf7 {[%clk
0:00:03]} 39. h4 {[%clk 0:00:45.7]} 39... Rc6 {[%clk 0:00:01.3]} 40. Rb3 {[%clk
0:00:45.5]} 40... Rc7 {[%clk 0:00:01.4]} 41. Kf3 {[%clk 0:00:45.4]} 41... Rd7
{[%clk 0:00:01.9]} 42. Rb6 {[%clk 0:00:43.2]} 42... Bd8 {[%clk 0:00:01.6]} 43.
Rb5 {[%clk 0:00:43.2]} 43... Bc7 {[%clk 0:00:01.8]} 44. h5 {[%clk 0:00:42.2]}
44... gxh5 {[%clk 0:00:01.9]} 45. Rxf5+ {[%clk 0:00:41.5]} 45... Kg6 {[%clk
0:00:02.6]} 46. Rg5+ {[%clk 0:00:41.9]} 1-0

[Event "*** Titled Tuesday Blitz"]
[Site "Chess.com"]
[Date "2020.05.05"]
[Round "4"]
[White "GMNeiksans"]
[Black "Gergo85"]
[Result "0-1"]
[WhiteElo "2766"]
[BlackElo "2550"]
[TimeControl "180+1"]
[EndTime "10:40:42 PDT"]
[Termination "Gergo85 won on time"]

1. e4 {[%clk 0:03:00.9]} 1... c6 {[%clk 0:02:58.1]} 2. d4 {[%clk 0:02:58.7]}
2... d5 {[%clk 0:02:58.7]} 3. exd5 {[%clk 0:02:58.9]} 3... cxd5 {[%clk
0:02:58.8]} 4. Bd3 {[%clk 0:02:59.1]} 4... Nc6 {[%clk 0:02:58.9]} 5. c3 {[%clk
0:02:59.2]} 5... Qc7 {[%clk 0:02:57.8]} 6. Ne2 {[%clk 0:02:58.3]} 6... Bg4
{[%clk 0:02:53.9]} 7. O-O {[%clk 0:02:57.7]} 7... e6 {[%clk 0:02:53.9]} 8. Qe1
{[%clk 0:02:52.8]} 8... Nf6 {[%clk 0:02:39.5]} 9. Bg5 {[%clk 0:02:51.2]} 9...
Bh5 {[%clk 0:02:40.1]} 10. Nf4 {[%clk 0:02:34.4]} 10... Bg6 {[%clk 0:02:04.5]}
11. Nxg6 {[%clk 0:02:25.7]} 11... hxg6 {[%clk 0:02:05.4]} 12. g3 {[%clk
0:02:25.4]} 12... Be7 {[%clk 0:01:54.5]} 13. Qe2 {[%clk 0:02:21.5]} 13... Rh5
{[%clk 0:01:43.4]} 14. Bf4 {[%clk 0:02:06.6]} 14... Bd6 {[%clk 0:01:41.5]} 15.
Bxd6 {[%clk 0:02:06.5]} 15... Qxd6 {[%clk 0:01:42.4]} 16. Nd2 {[%clk 0:02:00.3]}
16... O-O-O {[%clk 0:01:32.2]} 17. f4 {[%clk 0:01:52.6]} 17... Rdh8 {[%clk
0:01:26.3]} 18. Nf3 {[%clk 0:01:52.4]} 18... Ng4 {[%clk 0:01:00.5]} 19. h4
{[%clk 0:01:45.4]} 19... Nf6 {[%clk 0:00:30.5]} 20. Ne5 {[%clk 0:01:38.5]} 20...
Qc7 {[%clk 0:00:26]} 21. Kg2 {[%clk 0:01:33]} 21... Ne8 {[%clk 0:00:20.5]} 22.
Nxg6 {[%clk 0:00:42.6]} 22... fxg6 {[%clk 0:00:20.2]} 23. Qxe6+ {[%clk
0:00:42.7]} 23... Kb8 {[%clk 0:00:18.4]} 24. Bxg6 {[%clk 0:00:25.3]} 24... R5h6
{[%clk 0:00:18]} 25. Rae1 {[%clk 0:00:25.3]} 25... Nf6 {[%clk 0:00:17.7]} 26.
Qf5 {[%clk 0:00:18.4]} 26... Ne7 {[%clk 0:00:15.3]} 27. Rxe7 {[%clk 0:00:11.5]}
27... Qxe7 {[%clk 0:00:16.2]} 28. Rf2 {[%clk 0:00:07.5]} 28... Qe4+ {[%clk
0:00:15.5]} 29. Qxe4 {[%clk 0:00:07.9]} 29... Nxe4 {[%clk 0:00:16]} 30. Bxe4
{[%clk 0:00:08.1]} 30... dxe4 {[%clk 0:00:16.7]} 31. Re2 {[%clk 0:00:08.3]}
31... Re8 {[%clk 0:00:16]} 32. Kh3 {[%clk 0:00:08.5]} 32... Kc7 {[%clk
0:00:15.9]} 33. Re3 {[%clk 0:00:08.5]} 33... Kd6 {[%clk 0:00:16.3]} 34. Kg4
{[%clk 0:00:07.6]} 34... Kd5 {[%clk 0:00:13.9]} 35. b3 {[%clk 0:00:07.1]} 35...
b5 {[%clk 0:00:14.2]} 36. a3 {[%clk 0:00:05.8]} 36... Rc6 {[%clk 0:00:14.3]} 0-1

[Event "*** Titled Tuesday Blitz"]
[Site "Chess.com"]
[Date "2020.05.05"]
[Round "4"]
[White "ChessFunMaker"]
[Black "Raja3401"]
[Result "0-1"]
[WhiteElo "2356"]
[BlackElo "2704"]
[TimeControl "180+1"]
[EndTime "10:40:42 PDT"]
[Termination "Raja3401 won by checkmate"]

1. c4 {[%clk 0:03:00.2]} 1... e5 {[%clk 0:02:58.4]} 2. g3 {[%clk 0:03:00.5]}
2... Nf6 {[%clk 0:02:56.2]} 3. Bg2 {[%clk 0:03:00.4]} 3... Nc6 {[%clk
0:02:53.2]} 4. Nc3 {[%clk 0:03:00.2]} 4... Bc5 {[%clk 0:02:50.9]} 5. e3 {[%clk
0:03:00.6]} 5... O-O {[%clk 0:02:50.2]} 6. Nge2 {[%clk 0:03:01.1]} 6... d5
{[%clk 0:02:48.8]} 7. cxd5 {[%clk 0:02:54.3]} 7... Nb4 {[%clk 0:02:45]} 8. d4
{[%clk 0:02:52.7]} 8... exd4 {[%clk 0:02:43.6]} 9. exd4 {[%clk 0:02:41.5]} 9...
Bb6 {[%clk 0:02:33.1]} 10. Bg5 {[%clk 0:02:40.1]} 10... h6 {[%clk 0:02:29.8]}
11. Bxf6 {[%clk 0:02:23.7]} 11... Qxf6 {[%clk 0:02:30.7]} 12. O-O {[%clk
0:02:23.5]} 12... Bg4 {[%clk 0:02:29.4]} 13. a3 {[%clk 0:02:19.5]} 13... Na6
{[%clk 0:02:21.7]} 14. Ne4 {[%clk 0:02:06.6]} 14... Qe7 {[%clk 0:02:14.6]} 15.
Re1 {[%clk 0:01:49]} 15... Rad8 {[%clk 0:02:12]} 16. Qb3 {[%clk 0:01:41.7]}
16... Rfe8 {[%clk 0:01:48.7]} 17. h3 {[%clk 0:01:36.1]} 17... Bh5 {[%clk
0:01:42.5]} 18. Nf4 {[%clk 0:01:35.8]} 18... Bg6 {[%clk 0:01:32]} 19. d6 {[%clk
0:00:59.2]} 19... Qxe4 {[%clk 0:01:24.7]} 20. Bxe4 {[%clk 0:00:53.2]} 20... Bxe4
{[%clk 0:01:25.6]} 21. d7 {[%clk 0:00:32.1]} 21... Rxd7 {[%clk 0:01:24.4]} 22.
f3 {[%clk 0:00:18.9]} 22... Rxd4 {[%clk 0:01:22.6]} 23. Kh1 {[%clk 0:00:19.4]}
23... Nc5 {[%clk 0:01:12.8]} 24. Qb5 {[%clk 0:00:16]} 24... Bxf3+ {[%clk
0:01:07.6]} 25. Kg1 {[%clk 0:00:12]} 25... Rxe1+ {[%clk 0:00:55]} 26. Rxe1
{[%clk 0:00:11.8]} 26... Ne4 {[%clk 0:00:55.8]} 27. Qe8+ {[%clk 0:00:08.9]}
27... Kh7 {[%clk 0:00:55.7]} 28. Kh2 {[%clk 0:00:03]} 28... Rd2+ {[%clk
0:00:52.9]} 29. Re2 {[%clk 0:00:03.5]} 29... Rd1 {[%clk 0:00:47.4]} 30. Qxe4+
{[%clk 0:00:02.7]} 30... Bxe4 {[%clk 0:00:46.5]} 31. Rxe4 {[%clk 0:00:03.6]}
31... Rd2+ {[%clk 0:00:46.7]} 32. Ng2 {[%clk 0:00:02.4]} 32... f5 {[%clk
0:00:46.4]} 33. Re7 {[%clk 0:00:02.3]} 33... Kg6 {[%clk 0:00:44.8]} 34. h4
{[%clk 0:00:01.6]} 34... Rxb2 {[%clk 0:00:44.9]} 35. Kh3 {[%clk 0:00:02.1]}
35... Kf6 {[%clk 0:00:44.4]} 36. Rd7 {[%clk 0:00:02.8]} 36... g5 {[%clk
0:00:44.8]} 37. hxg5+ {[%clk 0:00:02.8]} 37... hxg5 {[%clk 0:00:45.7]} 38. g4
{[%clk 0:00:02.4]} 38... f4 {[%clk 0:00:44.1]} 39. Rd8 {[%clk 0:00:03]} 39...
Ke7 {[%clk 0:00:42.5]} 40. Rg8 {[%clk 0:00:02.6]} 40... f3 {[%clk 0:00:41.6]}
41. Ne1 {[%clk 0:00:01.6]} 41... f2 {[%clk 0:00:41.6]} 42. Rxg5 {[%clk
0:00:01.8]} 42... f1=Q+ {[%clk 0:00:40.7]} 43. Kg3 {[%clk 0:00:02]} 43... Qf2+
{[%clk 0:00:38.2]} 44. Kh3 {[%clk 0:00:02]} 44... Qh2# {[%clk 0:00:39.1]} 0-1

[Event "*** Titled Tuesday Blitz"]
[Site "Chess.com"]
[Date "2020.05.05"]
[Round "4"]
[White "Katheksis"]
[Black "politeplayer"]
[Result "0-1"]
[WhiteElo "2412"]
[BlackElo "2212"]
[TimeControl "180+1"]
[EndTime "10:40:42 PDT"]
[Termination "politeplayer won by checkmate"]

1. d4 {[%clk 0:03:00.9]} 1... Nf6 {[%clk 0:02:57.9]} 2. c4 {[%clk 0:02:58.4]}
2... c5 {[%clk 0:02:58]} 3. d5 {[%clk 0:02:57.7]} 3... e6 {[%clk 0:02:57.8]} 4.
Nc3 {[%clk 0:02:57.5]} 4... exd5 {[%clk 0:02:57.9]} 5. cxd5 {[%clk 0:02:58.4]}
5... d6 {[%clk 0:02:58]} 6. Bf4 {[%clk 0:02:51.1]} 6... g6 {[%clk 0:02:57.4]} 7.
e3 {[%clk 0:02:48.1]} 7... a6 {[%clk 0:02:53.1]} 8. a4 {[%clk 0:02:47.6]} 8...
Bg7 {[%clk 0:02:52.7]} 9. h3 {[%clk 0:02:47.2]} 9... O-O {[%clk 0:02:51]} 10.
Nf3 {[%clk 0:02:47.8]} 10... Ne8 {[%clk 0:02:41.8]} 11. Be2 {[%clk 0:02:46.8]}
11... Nd7 {[%clk 0:02:38.3]} 12. O-O {[%clk 0:02:46.3]} 12... Ne5 {[%clk
0:02:35.2]} 13. Nxe5 {[%clk 0:02:43.5]} 13... dxe5 {[%clk 0:02:35.2]} 14. Bh2
{[%clk 0:02:42.5]} 14... Nd6 {[%clk 0:02:33.3]} 15. e4 {[%clk 0:02:41.6]} 15...
f5 {[%clk 0:02:20.4]} 16. f3 {[%clk 0:02:33.6]} 16... Qh4 {[%clk 0:02:04.3]} 17.
Qe1 {[%clk 0:02:24.6]} 17... Qh6 {[%clk 0:01:49.7]} 18. Kh1 {[%clk 0:02:11.1]}
18... f4 {[%clk 0:01:48.1]} 19. Qf2 {[%clk 0:02:07.5]} 19... b6 {[%clk
0:01:20.5]} 20. a5 {[%clk 0:02:05.9]} 20... Bf6 {[%clk 0:01:16.6]} 21. axb6
{[%clk 0:02:01.8]} 21... Nb7 {[%clk 0:01:16.8]} 22. Rfc1 {[%clk 0:01:49.3]}
22... Bh4 {[%clk 0:01:16]} 23. Qf1 {[%clk 0:01:43.3]} 23... Bg3 {[%clk
0:01:13.2]} 24. Rxa6 {[%clk 0:01:27.9]} 24... Rxa6 {[%clk 0:01:09.9]} 25. Bxa6
{[%clk 0:01:28.8]} 25... Qh4 {[%clk 0:01:02]} 26. Ne2 {[%clk 0:01:27.3]} 26...
g5 {[%clk 0:00:55.2]} 27. Bxb7 {[%clk 0:00:46.2]} 27... Bxb7 {[%clk 0:00:54.9]}
28. Bxg3 {[%clk 0:00:41.4]} 28... fxg3 {[%clk 0:00:53.3]} 29. Ng1 {[%clk
0:00:31]} 29... g4 {[%clk 0:00:50.1]} 30. Qe2 {[%clk 0:00:24.7]} 30... Qh6
{[%clk 0:00:17.3]} 31. Rxc5 {[%clk 0:00:21.9]} 31... Ra8 {[%clk 0:00:15.9]} 32.
fxg4 {[%clk 0:00:17.4]} 32... Ra1 {[%clk 0:00:14.8]} 33. Rc7 {[%clk 0:00:16.2]}
33... Ba6 {[%clk 0:00:13]} 34. Qf1 {[%clk 0:00:11.2]} 34... Rxf1 {[%clk
0:00:08.9]} 35. b7 {[%clk 0:00:11.6]} 35... Rxg1+ {[%clk 0:00:08.4]} 36. Kxg1
{[%clk 0:00:11.5]} 36... Qe3+ {[%clk 0:00:08.9]} 37. Kh1 {[%clk 0:00:12.2]}
37... Qe1# {[%clk 0:00:09.5]} 0-1